Cogmind - Beta 13 *** ADVENTURER MODE // 2024.03.31 @ 16:35:45 Player: MetallicDragon Result: Destroyed by 8R-AWN with 8R-AWN's Boregun Performance ------------- Evolutions (1) 500 Regions Visited (4) 800 Robots Destroyed (35) 175 Value Destroyed (974) 974 Prototype IDs (2) 40 Alien Tech Used (0) 0 Bonus (0) 0 TOTAL SCORE: 2489 Bonus ------- None Cogmind --------- Core Integrity 0/400 Matter 159/300 Energy 100/100 System Corruption 4% Temperature Cool (0) Movement Core (50) Location -9/Exiles Parts ------- > --- POWER (2) -------- (None) > --- PROPULSION (2) --- (None) > --- UTILITY (2) ------ Hacking Suite > --- WEAPON (3) ------- Makeshift Sword > --- INVENTORY (5) ---- Armored Treads Terrain Scanner Transport Network Coupler Peak State ------------ > --- POWER ------------ Ion Engine Improved Ion Engine > --- PROPULSION ------- Armored Treads Armored Treads > --- UTILITY ---------- Improved Heat Sink Hacking Suite > --- WEAPON ----------- Improved Medium Laser Particle Cannon Heavy Assault Rifle > --- INVENTORY -------- Light Fission Core Armored Treads Terrain Scanner Transport Network Coupler Grenade Launcher [Rating: 23] Favorites ----------- Power Ion Engine Engine Ion Engine Propulsion Armored Treads Treads Armored Treads Leg Aluminum Leg Utility Hacking Suite Device Improved Heat Sink Storage Small Storage Unit Processor Signal Interpreter Hackware Hacking Suite Protection Backup Plating I Weapon Particle Cannon Energy Gun Improved Medium Laser Energy Cannon Particle Cannon Ballistic Gun Light Assault Rifle Launcher Grenade Launcher Slashing Weapon Makeshift Sword Build | -11 -10 -9 -9 -9 ------- Run | Yrd Mat Mat Min Exi Slots Evolved 2 | . . 2 . . Power 1 | . . 1 . . Propulsion . | . . . . . Utility . | . . . . . Weapon 1 | . . 1 . . Parts Attached 43 | 5 12 24 . 2 Power 10 | 1 3 6 . . Engine 10 | 1 3 6 . . Core . | . . . . . Reactor . | . . . . . Propulsion 12 | 2 6 4 . . Treads 2 | . . 2 . . Leg 10 | 2 6 2 . . Wheel . | . . . . . Hover . | . . . . . Flight . | . . . . . Utility 11 | . 2 9 . . Device 5 | . . 5 . . Storage 3 | . 1 2 . . Processor 2 | . 1 1 . . Hackware 1 | . . 1 . . Protection . | . . . . . Artifact . | . . . . . Weapon 10 | 2 1 5 . 2 Energy Gun 1 | . . 1 . . Energy Cannon 2 | . . 2 . . Ballistic Gun 5 | 2 1 2 . . Ballistic Cannon . | . . . . . Launcher 1 | . . . . 1 Special Weapon . | . . . . . Impact Weapon . | . . . . . Slashing Weapon 1 | . . . . 1 Piercing Weapon . | . . . . . Special Melee Weapon . | . . . . . Unidentified Prototypes 2 | . . 2 . . Parts Lost 9 | . . . . 9 Power 2 | . . . . 2 Propulsion 2 | . . . . 2 Utility 1 | . . . . 1 Weapon 4 | . . . . 4 Highest Loss Streak 9 | . . . . 9 To Critical Strikes 6 | . . . . 6 Average Slot Usage (%) 93 | . 84 99 100 91 Engine 19 | . 14 21 22 18 Treads 12 | . . 12 22 20 Leg 10 | . 28 9 . . Device 6 | . . 7 11 8 Storage 1 | . 5 1 . . Processor 2 | . 6 2 . . Hackware 7 | . . 8 11 11 Protection 1 | . 2 2 . . Energy Gun 6 | . . 7 11 10 Energy Cannon 7 | . . 10 11 9 Ballistic Gun 15 | . 27 14 11 9 Naked Turns . | . . . . . Heaviest Build 23 | 5 13 23 23 23 Greatest Support 40 | 20 20 40 40 40 Greatest Overweight (x) 1 | . 1 1 . 1 Average Overweight (x) . | . . . . . Largest Inventory Capacity 25 | 5 8 25 5 5 Average Capacity 5 | 5 6 5 5 5 Most Carried 5 | 3 5 5 4 5 Average Carried 3 | . 4 3 4 4 Final Capacity 8 | 5 8 5 5 5 Final Carried 5 | 3 5 4 4 3 Class Distribution -------------------- 51% | Hacker-Gunner 25% | Mutant 8% | Scavenger-Gunner 4% | Gunner 3% | Hacker-Mutant Dominant Class ---------------- Mutant | -10/Materials Hacker-Gunner | -9/Materials Hacker-Gunner | -9/Mines Hacker-Gunner | -9/Exiles Resources | -11 -10 -9 -9 -9 ----------- Run | Yrd Mat Mat Min Exi Matter Collected 855 | 254 178 368 9 46 Remotely . | . . . . . Salvage Created 1299 | 49 344 750 . 156 Parts 95 | 2 16 54 . 23 Haulers Intercepted 1 | . . 1 . . Recyclers Shooed 1 | . . 1 . . Parts Field Recycled . | . . . . . Retrieved Matter . | . . . . . Parts Self-Destructed . | . . . . . Prevented . | . . . . . Kills | -11 -10 -9 -9 -9 ------- Run | Yrd Mat Mat Min Exi Combat Hostiles Destroyed 28 | 1 7 14 . 6 Guns 21 | 1 7 10 . 3 Cannons 7 | . . 4 . 3 Classes Destroyed 7 | 1 1 3 . 2 Hauler 1 | . . 1 . . Operator 1 | . . 1 . . Watcher 6 | . 2 4 . . Grunt 18 | 1 7 10 . . Sentry 4 | . . 4 . . Zionite 3 | . . . . 3 Assembled 6 | . . . . 6 Best Kill Streak 10 | 1 3 9 . 10 Combat Bots Only 7 | 1 2 7 . 6 Max Kills in Single Turn 1 | 1 1 1 . 1 Gunslinging . | . . . . . Exploded . | . . . . . Melee . | . . . . . Uniques/NPCs Destroyed 2 | . . . . 2 EX-BIN (-9/Exiles) EX-DEC (-9/Exiles) Combat | -11 -10 -9 -9 -9 -------- Run | Yrd Mat Mat Min Exi Hostile Shots Fired 229 | 2 50 48 . 129 Missed 67 | 1 19 18 . 29 Damage Taken 1907 | 8 268 322 . 1309 Core 492 | 8 79 36 . 369 Absorbed by Shields . | . . . . . Ignored by Resistances 564 | 3 89 99 . 373 Regen/Repaired (Parts) 39 | . 39 . . . Core Remaining (%) 80 | 96 65 . . . Volleys Fired 112 | 2 42 34 . 34 Largest 3 | 2 2 3 . 3 Hottest 147 | 40 40 147 . 147 Shots Fired 241 | 4 84 92 . 61 Gun 197 | 4 84 65 . 44 Cannon 40 | . . 27 . 13 Launcher 4 | . . . . 4 Special . | . . . . . Kinetic 155 | 4 84 50 . 17 Thermal 82 | . . 42 . 40 Explosive 4 | . . . . 4 Electromagnetic . | . . . . . Robot Hit Streak 30 | 1 11 30 . 13 Robot Miss Streak 5 | 1 5 3 . 3 Penetration Max . | . . . . . Secondary Targets 3 | . 3 . . . Max Gunslinging Chain 1 | . 1 . . . Shots Hit Robots 165 | 2 53 58 . 52 Core Hits 72 | 2 22 30 . 18 Critical Kills 1 | . . 1 . . Critical Parts Destroyed . | . . . . . Critical Strikes 3 | . . 1 . 2 Burn 1 | . . . . 1 Destroy 1 | . . 1 . . Sever 1 | . . . . 1 Melee Attacks 11 | . . . . 11 Impact . | . . . . . Slashing 11 | . . . . 11 Piercing . | . . . . . Sneak Attacks . | . . . . . Combat Hostiles . | . . . . . Follow-up Attacks . | . . . . . Damage Inflicted 2652 | 17 498 973 . 1164 Guns 1592 | 17 487 601 . 487 Cannons 536 | . . 372 . 164 Explosions 123 | . . . . 123 Melee 390 | . . . . 390 Ramming 11 | . 11 . . . Kinetic 996 | 17 487 348 . 144 Thermal 1132 | . . 625 . 507 Explosive 123 | . . . . 123 Electromagnetic . | . . . . . Impact . | . . . . . Slashing 390 | . . . . 390 Piercing . | . . . . . Highest Corruption 4 | . . 2 2 4 Average Corruption 1 | . . 1 2 2 Corruption Purged . | . . . . . Corruption Blocked . | . . . . . Effects 22 | . . 10 3 9 Message Errors 6 | . . 3 . 3 Matter Fused 9 | . . 7 . 2 Heat Flow Errors 3 | . . . . 3 Energy Discharges 1 | . . . 1 . Data Loss (minor) 2 | . . . 2 . Misfires 1 | . . . . 1 Overload Shots . | . . . . . Overflow Damage 13 | . . . . 13 Projectiles 13 | . . . . 13 Explosions . | . . . . . Melee . | . . . . . Knockbacks . | . . . . . Impact . | . . . . . Kinetic . | . . . . . Secondary . | . . . . . Self-Inflicted Damage . | . . . . . Shots . | . . . . . Rammed . | . . . . . Targets Rammed 1 | . 1 . . . Kicked 1 | . 1 . . . Crushed . | . . . . . Highest Temperature 531 | . 24 350 . 531 Average Temperature 154 | . 7 104 . 255 Received Heat Transfer 403 | 6 195 162 . 40 Effects 14 | . . 4 . 10 Shutdowns 4 | . . . . 4 Energy Bleed 1 | . . . . 1 Interference 6 | . . 4 . 2 Matter Decay 2 | . . . . 2 Short Circuit 1 | . . . . 1 Siege Activations . | . . . . . Robots Corrupted . | . . . . . Combat Hostiles . | . . . . . Parts Fried . | . . . . . Impact Corruptions . | . . . . . Robots Melted . | . . . . . Combat Hostiles . | . . . . . Parts Melted 8 | . . 3 . 5 Heat Transferred 2340 | . . 1221 . 1119 Parts Sabotaged . | . . . . . Parts Stolen . | . . . . . Parts Stripped . | . . . . . Power Chain Reactions . | . . . . . Alert | -11 -10 -9 -9 -9 ------- Run | Yrd Mat Mat Min Exi Peak Influence 340 | 20 260 340 46 . Initial 46 | . 11 31 46 . Average 129 | 2 110 185 46 . Maximum Alert Level 1 | . 1 1 . . Low Security (%) 69 | 100 82 47 100 . Level 1 30 | . 17 52 . . Level 2 . | . . . . . Level 3 . | . . . . . Level 4 . | . . . . . Level 5 . | . . . . . High Security . | . . . . . Max Security . | . . . . . Squads Dispatched 7 | . 4 2 1 . Investigation 7 | . 4 2 1 . Extermination . | . . . . . Reinforcement . | . . . . . Assault . | . . . . . Garrison . | . . . . . Intercept . | . . . . . Searches Triggered . | . . . . . Construction Impeded . | . . . . . Haulers Reinforced . | . . . . . Active Scanning Responses . | . . . . . Cargo Convoy Interrupts . | . . . . . Stealth | -11 -10 -9 -9 -9 --------- Run | Yrd Mat Mat Min Exi Distress Signals 2 | . . 2 . . Communications Jammed . | . . . . . Distress Signals . | . . . . . Times Spotted 63 | 1 19 24 2 17 Peak Tracking Total 13 | 1 4 6 3 13 Tactical Retreats 7 | . 1 1 . 5 Traps | -11 -10 -9 -9 -9 ------- Run | Yrd Mat Mat Min Exi Traps Triggered 2 | . 1 1 . . Indirectly . | . . . . . Trap Hack Attempts . | . . . . . Triggered . | . . . . . Disarmed . | . . . . . Reprogrammed . | . . . . . Reused . | . . . . . Traps Extracted . | . . . . . Installed . | . . . . . Triggered . | . . . . . Machines | -11 -10 -9 -9 -9 ---------- Run | Yrd Mat Mat Min Exi Machines Disabled 7 | . . 1 . 6 Max in Single Turn 1 | . . 1 . 1 Machines Repaired . | . . . . . Machines Dismantled . | . . . . . Machines Sabotaged . | . . . . . Overloaded Fab Kills . | . . . . . Hacking | -11 -10 -9 -9 -9 --------- Run | Yrd Mat Mat Min Exi Machines Accessed 9 | . 4 4 1 . Terminals 6 | . 2 3 1 . Fabricators . | . . . . . Repair Stations 1 | . 1 . . . Recycling Units 2 | . 1 1 . . Scanalyzers . | . . . . . Garrison Access . | . . . . . Total Hacks 44 | . 21 19 4 . Successful 33 | . 14 16 3 . Failed 10 | . 7 2 1 . Catastrophic . | . . . . . Database Lockouts 1 | . . 1 . . Manual 1 | . 1 . . . Terminals 30 | . 10 16 4 . Fabricators . | . . . . . Repair Stations 7 | . 7 . . . Recycling Units 7 | . 4 3 . . Scanalyzers . | . . . . . Garrison Access . | . . . . . Terminal Hacks 20 | . 4 13 3 . Record 18 | . 4 12 2 . Alert Level 1 | . . 1 . . Zone Layout 1 | . . . 1 . Fabricator Hacks . | . . . . . Repair Station Hacks 6 | . 6 . . . Scan Component 2 | . 2 . . . Repair 2 | . 2 . . . Refit 2 | . 2 . . . Recycling Unit Hacks 7 | . 4 3 . . Recycle Component 1 | . 1 . . . Process 3 | . 2 1 . . Report Inventory 1 | . . 1 . . Retrieve Matter 2 | . 1 1 . . Scanalyzer . | . . . . . Garrison Access Hacks . | . . . . . Unauthorized Hacks . | . . . . . Terminals . | . . . . . Fabricators . | . . . . . Repair Stations . | . . . . . Recycling Units . | . . . . . Scanalyzers . | . . . . . Garrison Access . | . . . . . Data Cores Recovered 1 | . . 1 . . Used 1 | . . 1 . . Hacking Detections 8 | . 4 3 1 . Full Trace Events 8 | . 4 3 1 . Feedback Events 2 | . . 2 . . Corruption 2 | . . 2 . . Feedback Blocked . | . . . . . Robot Schematics Acquired . | . . . . . Robots Built . | . . . . . Authchips . | . . . . . Time . | . . . . . Total Robot Build Rating . | . . . . . Part Schematics Acquired . | . . . . . Parts Built . | . . . . . Authchips . | . . . . . Time . | . . . . . Total Part Build Rating . | . . . . . Parts Repaired 2 | . 2 . . . Time 52 | . 52 . . . Parts Recycled 1 | . 1 . . . Recycled Matter 247 | . 28 219 . . Retrieved Matter 321 | . 28 293 . . Retrieved Components . | . . . . . Parts Scanalyzed . | . . . . . Part Schematics Acquired . | . . . . . Parts Damaged . | . . . . . Bothacking | -11 -10 -9 -9 -9 ------------ Run | Yrd Mat Mat Min Exi Used RIF Installer . | . . . . . Robots Hacked . | . . . . . Non-combat . | . . . . . Combat . | . . . . . Robot Hacks Applied . | . . . . . Relay Couplers Released . | . . . . . Fabnet Peak Effective % . | . . . . . Robots Rewired . | . . . . . Allies Hacked . | . . . . . Hacks Repelled . | . . . . . Allies | -11 -10 -9 -9 -9 -------- Run | Yrd Mat Mat Min Exi Total Allies . | . . . . . Largest Group . | . . . . . Highest-Rated Group . | . . . . . Highest-Rated Ally . | . . . . . Total Orders . | . . . . . Ally Attacks . | . . . . . Total Damage . | . . . . . Kills . | . . . . . Allies Corrupted . | . . . . . Allies Melted . | . . . . . Intel | -11 -10 -9 -9 -9 ------- Run | Yrd Mat Mat Min Exi Robot Analysis Total . | . . . . . Derelict Logs Recovered . | . . . . . Drone Launches . | . . . . . Drone Recoveries . | . . . . . Exploration | -11 -10 -9 -9 -9 ------------- Run | Yrd Mat Mat Min Exi Turns Passed 2365 | 99 579 834 278 575 Spaces Moved 1241 | 70 320 417 164 270 Core 22 | 22 . . . . Treads 677 | . . 243 164 270 Legs 542 | 48 320 174 . . Wheels . | . . . . . Hover . | . . . . . Flight . | . . . . . Fastest Speed 50 | 50 120 120 170 170 Average Speed 150 | 98 121 161 170 170 Slowest Speed 250 | 120 190 250 170 250 Overloaded Moves . | . . . . . Propulsion Burnouts . | . . . . . Robots Hopped . | . . . . . Cave-ins Triggered . | . . . . . Exploration Rate (%) 33 | 6 38 33 26 62 Regions Visited 4 Branch Regions 2 Pre-discovered Areas . | . . . . . Known Exits Taken 1 | . 1 . . . Unknown Exits Taken 3 | 1 . 1 1 . Scrap Searched 2 | . . . 2 . Spaces Dug . | . . . . . Terrain Destroyed 4 | . . . . 4 Melee . | . . . . . Projectile . | . . . . . AOE 4 | . . . . 4 Terrain Rammed . | . . . . . Walls Destroyed . | . . . . . Machines Disabled . | . . . . . Actions | -11 -10 -9 -9 -9 --------- Run | Yrd Mat Mat Min Exi Total 1531 | 96 442 509 163 321 Wait 58 | 14 44 . . . Move 1237 | 69 319 416 163 270 Hop . | . . . . . Pick Up 40 | 6 14 18 . 2 Fast Attach 3 | 2 1 . . . Attach 14 | 3 2 7 . 2 Detach 2 | . 1 1 . . Swap 26 | . 9 17 . . Drop 26 | . 9 16 . 1 Fire 112 | 2 42 34 . 34 Melee 11 | . . . . 11 Ram . | . . . . . Kick 1 | . 1 . . . Crush . | . . . . . Escape Stasis . | . . . . . Rewire 1 | . . . . 1 Trap . | . . . . . Miscellaneous . | . . . . . Route ------- -11/Scrapyard -10/Materials -9/Materials -9/Mines -9/Exiles (discovered 1 exit: [*Min]) History --------- Turn | Location | Event 2 | -11/Scrapyard | Met Revision 17 79 | -11/Scrapyard | Discovered new exit (range 8) 100 | -11/Scrapyard | Entered Materials 337 | -10/Materials | Build established: Mutant 392 | -10/Materials | Discovered new exit (range 13) 415 | -10/Materials | Identified exit to Materials 573 | -10/Materials | Repaired Lgt. Assault Rifle 603 | -10/Materials | Repaired Ion Engine 679 | -10/Materials | Entered another Materials area 679 | -9/Materials | Evolved 2 slots: Power x1, Weapon x1 953 | -9/Materials | Destroyed 7 combat bots 1005 | -9/Materials | Central database locked down 1067 | -9/Materials | Discovered new exit (range 15) 1431 | -9/Materials | Build established: Hacker-Gunner 1513 | -9/Materials | Entered Mines 1767 | -9/Mines | Deemed a non-threat by the Exiles lab entrance 1767 | -9/Mines | Discovered new exit (range 5) 1791 | -9/Mines | Entered Exiles 1832 | -9/Exiles | Discovered new exit (range 15) 1847 | -9/Exiles | Met 8R-AWN 1878 | -9/Exiles | Met EX-HEX 2013 | -9/Exiles | Met EX-DEC 2082 | -9/Exiles | Visited The Gauntlet 2189 | -9/Exiles | Attacked by the Exiles 2280 | -9/Exiles | Destroyed EX-BIN 2311 | -9/Exiles | Core integrity fell below 50% 2323 | -9/Exiles | Destroyed EX-DEC 2340 | -9/Exiles | Core integrity fell below 20% 2366 | -9/Exiles | Destroyed by 8R-AWN with 8R-AWN's Boregun Last Messages --------------- HV Slug penetrates Wall. Penetrated by HV Slug. HV Slug penetrates Wall. Penetrated by HV Slug. HV Slug penetrates Wall. Destroyed Prototype Protection. Penetrated by HV Slug. Critical hit (Destroy). Arm. Treads destroyed. HV Slug penetrates Wall. Penetrated by HV Slug. HV Slug penetrates Wall. Wall collapses. 8R-AWN Prototype Ballistic Gun severed. HV Slug penetrates Testing Chamber Shield. HV Slug penetrates Testing Apparatus. Penetrated by HV Slug. HV Slug penetrates Wall. Penetrated by HV Slug. [Achievement: First Step to Greatness] Map ----- +----------------------------------------------------+ | ???????????????????## | | ????????????????????#" " "" | | ????????????????????#"""" ""## ##"" | | ????????????????????#"" ""#### #### | | ????????????????????#" """"##??# #??? | | ????????????????????#""" """#??## #### | | ????????????????????## ""##??#! "!# | | ?????????????????????#"" """##???#" !# | | ?????????????????????##""" ##????#" "# | | ??????????????????????##"""" ##?????#!!""!"# | | ???????????????????????### #??????######## | | ?????????????????????????##### ##?????????????? | | ?????????????????????????????## #??????????????? | | ??????????????????????????????# #??????????????? | | ??????????????????????????????# #??????????????? | | ??????????????????????????????# #??????????????? | | #####??????###??????####??????# #??????????????? | | """""#???"""""""#??#"""""""???# #??????????????? | | ""#??#"""""""#??#"""""""#??# #??????????????? | | "#??"""""" "#??#" """"#??# #??????????????? | | ""#""#""" """#??#"" """#??# #??????????????? | | ""#""#"" ""??## " ""#??# #??????????????? | | """###""###"""##### "" ###### ########?####??? | | """"""" """" """"" """""""#"""""#?? | | """""" "" ! g c "#"" ""#?? | | % & @ " ""#?? | | % ! = " " "#?? | | * = [ *%!! " """#?? | | " " #"" ""#?? | | """ "" """" """""#"""""#?? | | """########"""###""#;#"""########"""######?####??? | | ""????"" ""#"";"" ""????"" ""???????????? | | " """#??#""" ""#" #""" ""#??#"" """#??????????? | | """ "#??#" """""" "#" " "#??#"""""""#??????????? | | """""#??#"""""""#""#"""""""#??#"" """"#??????????? | | """""#??#"""""""???#"""""""#??#"""""""???????????? | | ####???????#"##?????########????####?????????????? | | ?????????????????????????????????????????????????? | | ?????????????????????????????????????????????????? | | ?????????????????????????????????????????????????? | | ?????????????????????????????????????????????????? | | | | | | | | | | | | | | | | | | | +----------------------------------------------------+ Best States ------------- Heat Dissipation 42 Energy Generation 17 Energy Capacity 415 Matter Stores 300 Matter Capacity 300 Sight Range 16 Terrain Scan Range 14 Terrain Scan Density 10 Armor Coverage 80 Resistance: KI 20 Resistance: TH 20 Resistance: EX 20 Resistance: EM 20 Resistance: I 20 Resistance: S 20 Resistance: P 20 Evasion (%) 55 Targeting Accuracy 6 Recoil Reduction 2 Offensive Hacking 20 Item Schematics ----------------- None Robot Schematics ------------------ None Fabricated ------------ Nothing Alien Tech Used ----------------- None Achievements -------------- Crack Shot Dynamic Key First Step to Greatness Librarian Loot Pinata One Hack Too Far Part-time Mechanic Risk Taker Storm Trooper Challenges ------------ None Game ------ Seed AntimatterCompactRouter Manual? 0 Play Time 01:37:56 Cumulative 2.3 hours Start 2024.03.31 @ 14:26:19 End 2024.03.31 @ 16:35:45 Sessions 1 Manual Loads 0 Difficulty Adventurer Special Mode None Game No. 2 Rogue 1 Adventurer 1 Explorer 0 Win Type - Total 0 Types 0/0/0/0/0/0/0/0/0 Lore% 3 Gallery% 3 Achievement% 3 Wizard Run 0 Options --------- Layout 1 ASCII 0 Keyboard 0 Movement Mouse Keybinds 0 Fullscreen 2 Font 32/SmallcapsGlow Map View 50x35 Zoom Use 0% Tactical HUD 0 Map Filters NONE Filters NONE Steam 1 RUN: 06d32498-7cb6-4f33-85dc-66d6e5c1b157